bitfinex/quotes_SOLUSD_20241116
["timestamp","ask_amount","ask_price","bid_price","bid_amount"]
[1731791481400,9.06439175,215.98,215.92,23.776884]
[1731791481609,9.06439175,215.99,215.92,23.776884]
[1731791482306,4.526596,216.0,215.94,9.06439175]
[1731791482503,4.526596,216.0,215.95,23.776884]
[1731791483732,9.06439175,215.99,215.91,15.64609175]
[1731791485007,9.156196,216.0,215.93,9.06439175]
[1731791486061,4.526596,216.0,215.94,23.776884]
[1731791486272,4.526596,216.0,215.97,32.84127575]
[1731791486561,4.526596,216.0,215.98,23.776884]
[1731791487485,4.526596,216.0,215.96,23.776884]
[1731791487750,4.526596,216.0,215.97,9.06439175]
[1731791487929,4.526596,216.0,215.98,23.776884]
[1731791489551,4.526596,216.0,215.99,32.84127575]
[1731791490833,4.526596,216.0,215.99,23.776884]
[1731791491052,4.526596,216.0,215.98,23.776884]
[1731791491559,4.526596,216.0,215.97,23.776884]
[1731791491867,4.526596,216.0,215.97,32.84127575]
[1731791495961,4.526596,216.0,215.99,9.06439175]
[1731791496165,4.526596,216.0,215.99,32.84127575]
[1731791497647,4.526596,216.0,215.99,23.776884]
[1731791498453,4.526596,216.0,215.99,32.84127575]
[1731791500452,4.526596,216.0,215.99,52.84127575]
[1731791501350,4.526596,216.0,215.99,58.90957575]
[1731791508039,4.526596,216.0,215.99,59.12874037]
[1731791508244,0.5408931,216.08,215.99,59.12874037]
[1731791508245,0.5408931,216.08,216.02,0.09367462]
[1731791508446,0.5408931,216.08,216.07,9.06439175]
[1731791509027,0.5408931,216.08,216.04,9.06439175]
[1731791509242,0.5408931,216.08,216.05,20.0]
[1731791509443,0.5408931,216.08,216.05,29.06439175]
[1731791509757,0.5408931,216.08,216.04,9.06439175]
[1731791510337,0.5408931,216.08,216.05,23.776884]
[1731791510629,0.5408931,216.08,216.05,32.84127575]
[1731791511048,0.5408931,216.08,216.07,32.84127575]
[1731791511258,0.5408931,216.08,216.07,52.84127575]
[1731791511755,0.5408931,216.08,216.07,52.93495037]
[1731791512150,0.5408931,216.08,216.07,59.47475037]
[1731791515943,0.5408931,216.08,216.07,65.94361422]
[1731791516859,0.5408931,216.08,216.07,79.84361422]
[1731791517061,0.5408931,216.08,216.07,65.94361422]
[1731791517564,0.5408931,216.08,216.07,66.19459422]
[1731791518643,9.06439175,216.23,216.12,0.09367462]
[1731791518859,15.79249175,216.24,216.16,9.06439175]
[1731791520654,15.79249175,216.24,216.17,23.776884]
[1731791520848,13.68909175,216.23,216.17,23.776884]
[1731791521245,4.6247,216.23,216.17,23.776884]
[1731791522571,4.6245,216.24,216.18,9.06439175]
[1731791522869,4.6245,216.24,216.17,32.84127575]
[1731791523044,4.6245,216.24,216.18,23.776884]
[1731791523367,13.68889175,216.24,216.18,23.776884]
[1731791523771,9.06439175,216.23,216.16,9.06439175]
[1731791523975,9.06439175,216.22,216.15,52.84127575]
[1731791524269,9.06439175,216.23,216.16,9.06439175]
[1731791525273,4.6249,216.22,216.16,9.06439175]
[1731791529052,4.6249,216.22,216.15,23.776884]
[1731791529667,9.06439175,216.19,216.14,15.6511]
[1731791529875,9.06439175,216.19,216.13,23.776884]
[1731791530375,9.06439175,216.19,216.11,23.776884]
[1731791530592,9.06439175,216.19,216.12,9.06439175]
[1731791531080,13.68999175,216.19,216.13,23.776884]
[1731791532076,13.68999175,216.19,216.12,9.06439175]
[1731791532684,13.68999175,216.19,216.11,23.776884]
[1731791533264,9.06439175,216.15,216.07,6.5398]
[1731791533462,9.06439175,216.13,216.05,9.06439175]
[1731791533654,9.06439175,216.11,216.04,15.737]
[1731791534772,13.69179175,216.11,216.04,15.737]
[1731791534975,9.06439175,216.13,216.05,9.06439175]
[1731791535270,0.12549,216.16,216.06,9.06439175]
[1731791535271,9.06439175,216.14,216.06,9.06439175]
[1731791535456,9.06439175,216.13,216.05,32.84127575]
[1731791535661,0.12549,216.16,216.05,23.776884]
[1731791535662,9.06439175,216.12,216.05,23.776884]
[1731791536585,13.69139175,216.12,216.05,23.776884]
[1731791538381,13.69139175,216.12,216.04,9.06439175]
[1731791539059,9.06439175,216.1,216.02,15.38709175]
[1731791539255,9.06439175,216.1,216.03,29.06439175]
[1731791539452,9.06439175,216.11,216.03,29.06439175]
[1731791540970,4.6274,216.1,216.03,9.06439175]
[1731791541954,4.6274,216.1,216.04,9.06439175]
[1731791542576,6.1358,216.19,216.06,9.06439175]
[1731791542876,9.06439175,216.11,216.02,6.3227]
[1731791543066,9.06439175,216.1,216.03,9.06439175]
[1731791543967,9.06439175,216.08,216.0,7.23889115]
[1731791544273,9.06439175,216.07,216.0,16.3032829]
[1731791546458,13.69259175,216.07,215.99,15.737]
[1731791546754,13.69259175,216.07,215.97,6.0853]
[1731791546755,13.69259175,216.07,215.98,32.84127575]
[1731791547550,9.06439175,216.05,215.98,32.84127575]
[1731791547775,9.06439175,216.04,215.97,9.06439175]
[1731791548084,9.06439175,216.04,215.96,9.06439175]
[1731791548254,4.6282,216.07,215.98,9.06439175]
[1731791548455,9.06439175,216.05,215.98,9.06439175]
[1731791548674,9.06439175,216.04,215.96,20.0]
[1731791548880,9.06439175,216.04,215.96,29.06439175]
[1731791549585,13.69319175,216.04,215.96,29.06439175]
[1731791550256,4.6285,216.06,215.99,9.06439175]
[1731791550466,9.18988175,216.09,216.0,9.06439175]
[1731791551782,4.628,216.08,216.0,9.06439175]
[1731791552872,2.1036,216.1,216.03,9.06439175]
[1731791553183,4.6276,216.1,216.03,9.06439175]
[1731791553370,13.69199175,216.1,216.03,9.06439175]
[1731791554984,9.06439175,216.09,216.02,9.06439175]
[1731791556171,13.69209175,216.09,216.02,9.06439175]
[1731791556575,13.69209175,216.09,216.0,20.0]
[1731791556779,13.69209175,216.09,216.02,9.06439175]
[1731791557864,13.69209175,216.09,216.0,20.0]
[1731791558077,13.69209175,216.09,216.02,9.06439175]
[1731791558680,9.06439175,216.08,216.0,9.06439175]
[1731791558888,9.06439175,216.07,216.0,20.0]
[1731791559169,9.06439175,216.08,216.0,29.06439175]
[1731791559370,9.06439175,216.08,216.01,9.06439175]
[1731791559787,4.6281,216.07,216.01,9.06439175]
[1731791560665,4.6279,216.09,216.01,9.06439175]
[1731791560870,9.06439175,216.1,216.03,9.06439175]
[1731791561066,4.6274,216.11,216.04,9.06439175]
[1731791561498,4.627,216.13,216.06,9.06439175]
[1731791561676,9.06439175,216.1,216.02,15.2294]
[1731791561880,4.6277,216.09,216.01,9.06439175]
[1731791562295,9.06439175,216.08,216.01,9.06439175]
[1731791563572,13.69239175,216.08,216.01,9.06439175]
[1731791566083,13.69239175,216.08,215.98,43.776884]
[1731791566281,13.69239175,216.08,215.99,9.06439175]
[1731791570377,0.12549,215.99,215.83,20.99887439]
[1731791570599,9.06439175,215.92,215.84,9.06439175]
[1731791571174,9.06439175,215.9,215.82,9.06439175]
[1731791572399,9.06439175,215.9,215.83,20.0]
[1731791574783,9.06439175,215.9,215.82,20.0]
[1731791575088,9.06439175,215.9,215.83,9.06439175]
[1731791575980,4.6304,215.96,215.86,9.06439175]
[1731791576192,9.06439175,215.95,215.86,9.06439175]
[1731791577209,13.69509175,215.95,215.86,9.06439175]
[1731791577785,9.06439175,215.94,215.86,9.06439175]
[1731791577988,4.6307,215.95,215.86,9.06439175]
[1731791578181,9.06439175,215.94,215.86,9.06439175]
[1731791579292,13.69509175,215.95,215.87,9.06439175]
[1731791579494,13.69509175,215.95,215.88,9.06439175]
[1731791580517,2.1036,215.97,215.85,20.0]
[1731791580518,6.734,215.97,215.9,9.06439175]
[1731791580703,4.6299,215.99,215.92,9.06439175]
[1731791580895,9.06439175,215.97,215.9,9.06439175]
[1731791581096,9.06439175,215.95,215.88,9.06439175]
[1731791581319,13.69549175,215.94,215.86,9.06439175]
[1731791584705,13.69549175,215.94,215.85,23.776884]
[1731791584905,9.06439175,215.92,215.85,23.776884]
[1731791585110,9.06439175,215.92,215.85,20.0]
[1731791585736,9.06439175,215.91,215.85,20.0]
[1731791585897,9.06439175,215.91,215.82,20.0]
[1731791586103,9.06439175,215.91,215.81,15.903]
[1731791586104,13.69599175,215.91,215.85,20.0]
[1731791586304,4.6316,215.91,215.85,20.0]
[1731791587719,9.06439175,215.94,215.86,9.06439175]
[1731791588435,9.06439175,215.93,215.83,23.776884]
[1731791588767,9.06439175,215.93,215.86,9.06439175]
[1731791589626,13.69549175,215.93,215.86,9.06439175]
[1731791590537,9.06439175,215.95,215.88,9.06439175]
[1731791590709,9.06439175,215.96,215.88,9.06439175]
[1731791591119,9.06439175,215.94,215.87,9.06439175]
[1731791591325,9.06439175,215.95,215.87,9.06439175]
[1731791591626,4.6302,215.97,215.87,9.06439175]
[1731791591627,9.06439175,215.94,215.87,9.06439175]
[1731791592127,9.06439175,215.95,215.88,9.06439175]
[1731791592313,186.1502,216.02,215.91,9.06439175]
[1731791592314,9.06439175,215.98,215.91,9.06439175]
[1731791593026,9.06439175,215.99,215.92,9.06439175]
[1731791593424,4.6298,215.99,215.92,9.06439175]
[1731791594431,2.1036,216.02,215.94,9.06439175]
[1731791594432,4.6295,216.01,215.94,9.06439175]
[1731791594940,13.69389175,216.01,215.94,9.06439175]
[1731791596009,4.6295,216.01,215.94,9.06439175]
[1731791597614,20.0,216.06,215.96,9.06439175]
[1731791597808,9.06439175,216.04,215.96,9.06439175]
[1731791598723,4.6289,216.03,215.96,9.06439175]
[1731791599513,4.6289,216.03,215.97,9.06439175]
[1731791599920,4.6272,216.11,216.02,9.06439175]
[1731791600226,4.6272,216.11,216.03,9.06439175]
[1731791600427,13.69159175,216.11,216.03,9.06439175]
[1731791600639,9.06439175,216.09,216.02,9.06439175]
[1731791600845,4.6272,216.11,216.04,9.06439175]
[1731791601045,9.06439175,216.1,216.03,9.06439175]
[1731791601344,9.06439175,216.1,216.02,9.06439175]
[1731791601641,9.06439175,216.09,216.02,9.06439175]
[1731791601829,4.6277,216.09,216.02,9.06439175]
[1731791602326,13.69209175,216.09,216.02,9.06439175]
[1731791603842,9.06439175,216.1,216.02,9.06439175]
[1731791604812,4.6272,216.11,216.04,9.06439175]
[1731791605540,4.6271,216.12,216.05,9.06439175]
[1731791605835,13.69149175,216.12,216.04,9.06439175]
[1731791610044,13.69149175,216.12,215.99,0.21916462]
[1731791610247,13.69149175,216.12,216.03,9.06439175]
[1731791612846,13.69149175,216.12,216.0,13.691492]
[1731791613042,22.1036,216.17,216.08,9.06439175]
[1731791613245,13.69069175,216.16,216.09,9.06439175]
[1731791613745,4.6263,216.16,216.09,9.06439175]
[1731791613944,9.06439175,216.18,216.1,9.06439175]
[1731791615040,13.69029175,216.18,216.1,9.06439175]
[1731791615247,9.06439175,216.15,216.04,43.87055862]
[1731791615443,9.06439175,216.14,216.07,9.06439175]
[1731791615643,9.06439175,216.1,216.03,15.4679]
[1731791616526,9.06439175,216.09,216.03,15.4679]
[1731791616723,9.06439175,216.06,215.99,9.06439175]
[1731791616928,9.06439175,216.05,215.97,21.7846]
[1731791617133,9.06439175,216.03,215.97,15.4679]
[1731791617449,9.06439175,216.03,215.95,9.06439175]
[1731791617830,9.06439175,216.03,215.97,9.06439175]
[1731791623163,9.06439175,216.05,215.97,9.06439175]
[1731791624067,16.2953,216.11,215.94,11.768]
[1731791624068,9.06439175,216.03,215.96,23.776884]
[1731791624357,9.06439175,215.99,215.93,20.0]
[1731791624536,9.06439175,215.99,215.92,15.4679]
[1731791624741,9.06439175,215.99,215.91,9.06439175]
[1731791624940,6.7326,216.03,215.87,21.9367]
[1731791624941,20.0,216.02,215.87,21.9367]
[1731791625149,9.06439175,215.96,215.88,20.63469175]
[1731791625456,9.06439175,215.96,215.88,9.06439175]
[1731791625865,9.06439175,215.94,215.87,15.5769]
[1731791626031,9.06439175,215.94,215.82,6.1149]
[1731791626238,4.6298,215.99,215.88,9.06439175]
[1731791626537,9.06439175,215.96,215.88,9.06439175]
[1731791626743,9.06439175,215.94,215.86,9.06439175]
[1731791627463,9.06439175,215.94,215.87,23.776884]
[1731791627971,9.06439175,215.97,215.89,9.06439175]
[1731791628262,9.06439175,215.97,215.9,9.06439175]
[1731791629070,9.06439175,215.97,215.9,23.776884]
[1731791629866,13.69459175,215.98,215.9,32.84127575]
[1731791630039,4.6294,216.01,215.9,32.84127575]
[1731791630239,9.06439175,215.98,215.9,32.84127575]
[1731791630848,9.06439175,215.97,215.9,32.84127575]
[1731791631457,4.6294,216.01,215.9,32.84127575]
[1731791631786,9.06439175,215.98,215.9,32.84127575]
[1731791632062,6.7327,216.03,215.95,9.06439175]
[1731791632271,13.69319175,216.04,215.97,9.06439175]
[1731791632564,13.69319175,216.04,215.91,6.36588]
[1731791632565,9.06439175,216.03,215.95,9.06439175]
[1731791632748,9.06439175,216.02,215.95,9.06439175]
[1731791632951,9.06439175,216.03,215.95,9.06439175]
[1731791633738,13.69339175,216.03,215.95,9.06439175]
[1731791633938,4.629,216.03,215.96,9.06439175]
[1731791634966,9.06439175,216.02,215.92,43.87055862]
[1731791635187,9.06439175,216.03,215.95,32.84127575]
[1731791635481,9.06439175,216.03,215.95,9.06439175]
[1731791636359,9.06439175,216.03,215.96,9.06439175]
[1731791638366,13.69289175,216.06,215.99,9.06439175]
[1731791638566,2.1036,216.08,216.0,9.06439175]
[1731791638567,15.79599175,216.08,216.0,9.06439175]
[1731791638939,9.06439175,216.07,216.0,9.06439175]
[1731791639744,13.69249175,216.07,216.0,9.06439175]
[1731791640154,9.06439175,216.06,215.99,9.06439175]
[1731791642444,9.06439175,216.04,215.92,23.776884]
[1731791642657,9.06439175,216.03,215.96,23.776884]
[1731791642978,9.06439175,216.03,215.95,9.06439175]
[1731791643655,13.69349175,216.03,215.96,9.06439175]
[1731791643861,11.16799175,216.08,216.01,9.06439175]
[1731791644066,13.69189175,216.1,216.02,9.06439175]
[1731791644261,9.06439175,216.11,216.04,9.06439175]
[1731791644763,9.06439175,216.09,216.02,9.06439175]
[1731791644956,9.06439175,216.08,216.01,9.06439175]
[1731791645350,13.69209175,216.09,216.01,9.06439175]
[1731791645751,9.06439175,216.08,216.0,32.84127575]
[1731791646979,9.06439175,216.07,216.0,32.84127575]
[1731791649993,9.06439175,216.09,216.02,9.06439175]
[1731791650950,13.69209175,216.09,216.02,9.06439175]
[1731791652263,4.6274,216.11,216.03,23.776884]
[1731791652466,9.06439175,216.12,216.04,9.06439175]
[1731791653169,9.06439175,216.12,216.05,9.06439175]
[1731791653371,9.06439175,216.13,216.06,9.06439175]
[1731791653585,8.2691,216.19,216.03,23.776884]
[1731791653586,9.06439175,216.14,216.07,9.06439175]
[1731791656272,13.69099175,216.14,216.07,9.06439175]
[1731791656778,9.06439175,216.15,216.07,9.06439175]
[1731791657196,4.6257,216.18,216.03,23.776884]
[1731791657197,9.06439175,216.11,216.04,9.06439175]
[1731791657494,9.06439175,216.11,216.05,43.776884]
[1731791657912,9.06439175,216.12,216.05,52.84127575]
[1731791662108,9.06439175,216.12,216.05,43.776884]
[1731791662406,9.06439175,216.12,216.05,52.84127575]
[1731791662781,9.06439175,216.15,216.08,9.06439175]
[1731791663199,9.06439175,216.15,216.07,15.2187]
[1731791663200,0.1,216.23,216.11,9.06439175]
[1731791663385,9.06439175,216.18,216.11,9.06439175]
[1731791666194,13.68989175,216.19,216.11,9.06439175]
[1731791666684,13.68989175,216.19,216.12,9.06439175]
[1731791667011,13.68989175,216.19,216.11,9.06439175]
[1731791667012,9.06439175,216.18,216.11,9.06439175]
[1731791669811,24.6247,216.23,216.13,9.06439175]
[1731791670011,9.06439175,216.22,216.15,9.06439175]
[1731791671287,9.06439175,216.21,216.14,9.06439175]
[1731791671606,9.06439175,216.21,216.15,23.776884]
[1731791673007,9.06439175,216.22,216.15,32.84127575]
[1731791674915,9.06439175,216.21,216.15,32.84127575]
[1731791675089,9.06439175,216.21,216.15,23.776884]
[1731791675926,9.06439175,216.2,216.15,23.776884]
[1731791676896,9.06439175,216.21,216.15,23.776884]
[1731791677395,9.06439175,216.22,216.16,9.06439175]
[1731791677602,9.06439175,216.22,216.15,49.05747575]
[1731791678184,9.06439175,216.26,216.19,9.06439175]
[1731791678682,4.6238,216.28,216.2,9.06439175]
[1731791678909,9.06439175,216.27,216.2,9.06439175]
[1731791679114,9.06439175,216.26,216.2,9.06439175]
[1731791679291,9.06439175,216.26,216.16,0.09367462]
[1731791679496,9.06439175,216.21,216.15,39.993084]
[1731791680513,9.06439175,216.22,216.15,49.05747575]
[1731791683710,9.06439175,216.23,216.16,9.06439175]
[1731791685116,13.68909175,216.23,216.16,9.06439175]
[1731791685684,9.06439175,216.22,216.15,49.05747575]
[1731791687588,13.68929175,216.22,216.15,49.05747575]
[1731791690195,13.68929175,216.22,216.15,39.993084]
[1731791696019,9.06439175,216.22,216.15,39.993084]
[1731791697719,9.06439175,216.19,216.15,16.2162]
[1731791697927,9.06439175,216.16,216.15,16.2162]
[1731791698616,9.06439175,216.17,216.15,16.2162]
[1731791698916,9.06439175,216.22,216.15,25.28059175]
[1731791699293,13.68909175,216.23,216.16,9.06439175]
[1731791700027,9.06439175,216.22,216.15,25.28059175]
[1731791702513,4.6247,216.23,216.15,25.28059175]
[1731791702514,9.06439175,216.21,216.15,16.2162]
[1731791703009,9.06439175,216.22,216.16,23.776884]
[1731791703321,4.6236,216.28,216.16,23.776884]
[1731791703322,9.06439175,216.23,216.16,32.84127575]
[1731791703513,9.06439175,216.22,216.15,16.2162]
[1731791704219,9.06439175,216.22,216.16,23.776884]
[1731791704524,9.06439175,216.25,216.17,9.06439175]
[1731791705521,13.68869175,216.25,216.17,9.06439175]
[1731791705730,9.06439175,216.25,216.18,32.84127575]
[1731791705907,9.06439175,216.26,216.19,9.06439175]
[1731791706705,4.6236,216.28,216.2,32.84127575]
[1731791707008,13.68799175,216.28,216.21,9.06439175]
[1731791707214,0.5408931,216.29,216.21,9.06439175]
[1731791707410,9.06439175,216.28,216.22,16.6662]
[1731791708426,9.06439175,216.28,216.22,23.0274]
[1731791709018,0.5408931,216.29,216.23,23.776884]
[1731791709222,9.60528485,216.29,216.23,23.776884]
[1731791710111,0.5408931,216.29,216.23,32.84127575]
[1731791710322,9.06439175,216.28,216.23,23.776884]
[1731791711009,9.60528485,216.29,216.23,23.776884]
[1731791712931,0.5408931,216.29,216.23,32.84127575]
[1731791713629,0.5408931,216.29,216.25,9.06439175]
[1731791714010,0.5408931,216.29,216.26,9.06439175]
[1731791714214,0.5408931,216.29,216.27,32.84127575]
[1731791714404,0.5408931,216.29,216.28,49.50747575]
[1731791714726,0.5408931,216.29,216.28,49.60115037]
[1731791715034,16.26143392,216.37,216.3,9.06439175]
[1731791715233,9.06439175,216.37,216.3,9.06439175]
[1731791715407,9.06439175,216.36,216.29,32.84127575]
[1731791715818,7.19704217,216.39,216.32,9.06439175]
[1731791716012,9.06439175,216.39,216.33,23.776884]
[1731791717823,9.06439175,216.38,216.31,32.84127575]
[1731791718938,9.06439175,216.37,216.31,23.776884]
[1731791719112,13.68569175,216.39,216.33,23.776884]
[1731791719626,7.19704217,216.43,216.36,23.776884]
[1731791719825,7.19704217,216.43,216.36,39.20247575]
[1731791719826,9.06439175,216.43,216.36,39.20247575]
[1731791720036,9.06439175,216.42,216.36,30.138084]
[1731791720417,4.6203,216.44,216.36,39.20247575]
[1731791720730,9.06439175,216.43,216.36,39.20247575]
[1731791720930,9.06439175,216.42,216.36,30.138084]
[1731791721320,4.6203,216.44,216.36,39.20247575]
[1731791721518,9.06439175,216.43,216.36,39.20247575]
[1731791722224,9.06439175,216.42,216.36,30.138084]
[1731791722538,4.6195,216.47,216.36,30.138084]
[1731791722539,9.06439175,216.4,216.36,30.138084]
[1731791722910,9.06439175,216.41,216.36,30.138084]
[1731791725019,9.06439175,216.38,216.35,16.6662]
[1731791725233,9.06439175,216.36,216.28,9.06439175]
[1731791725422,9.06439175,216.34,216.27,24.06779175]
[1731791725737,9.06439175,216.35,216.28,9.06439175]
[1731791726442,9.06439175,216.36,216.28,9.06439175]
[1731791726625,9.06439175,216.37,216.31,23.776884]
[1731791726834,9.06439175,216.42,216.35,15.0034]
[1731791727030,9.06439175,216.42,216.36,23.776884]
[1731791727217,9.06439175,216.43,216.36,23.776884]
[1731791728047,13.68479175,216.43,216.36,23.776884]
[1731791729015,9.06439175,216.43,216.36,32.84127575]
[1731791729421,9.06439175,216.45,216.38,32.84127575]
[1731791729633,13.68429175,216.46,216.39,9.06439175]
[1731791729831,9.06439175,216.47,216.41,23.776884]
[1731791730450,9.06439175,216.46,216.4,23.776884]
[1731791731249,9.06439175,216.46,216.35,15.0034]
[1731791731250,9.06439175,216.44,216.38,23.776884]
[1731791731552,9.06439175,216.43,216.37,20.0]
[1731791732042,9.06439175,216.43,216.38,23.776884]
[1731791734442,9.06439175,216.44,216.38,23.776884]
[1731791735242,9.06439175,216.43,216.36,23.776884]
[1731791736644,9.06439175,216.39,216.35,15.0034]
[1731791736839,9.06439175,216.36,216.35,15.0034]
[1731791737018,9.06439175,216.36,216.3,16.4219]
[1731791737362,9.06439175,216.34,216.3,16.4219]
[1731791737721,9.06439175,216.34,216.28,0.09367462]
[1731791738040,9.06439175,216.33,216.26,9.06439175]
[1731791738555,9.06439175,216.33,216.26,9.15806637]
[1731791739049,9.06439175,216.36,216.29,9.06439175]
[1731791739228,4.6206,216.42,216.32,9.06439175]
[1731791739422,13.68499175,216.42,216.35,9.06439175]
[1731791739621,4.6195,216.47,216.36,23.776884]
[1731791739947,9.06439175,216.43,216.36,23.776884]
[1731791740328,9.06439175,216.42,216.35,43.87055862]
[1731791740643,9.06439175,216.41,216.35,43.87055862]
[1731791740843,14.08689403,216.42,216.35,43.87055862]
[1731791742025,18.70729403,216.43,216.35,57.95745265]
[1731791743445,14.08689403,216.46,216.38,14.21238403]
[1731791743652,14.08689403,216.44,216.37,20.0]
[1731791743858,14.08689403,216.43,216.37,20.0]
[1731791744723,14.08689403,216.43,216.36,14.08689403]
[1731791745047,14.08689403,216.43,216.36,23.776884]
[1731791745349,14.08689403,216.37,216.26,16.185]
[1731791745552,14.08689403,216.35,216.27,14.08689403]
[1731791745850,14.08689403,216.37,216.29,14.08689403]
[1731791746223,14.08689403,216.37,216.3,0.09367462]
[1731791746621,14.08689403,216.37,216.31,23.776884]
[1731791747529,18.70789403,216.41,216.33,14.08689403]
[1731791747737,18.70789403,216.41,216.34,23.776884]
[1731791748350,14.08689403,216.42,216.36,23.776884]
[1731791748544,14.08689403,216.43,216.36,23.776884]
[1731791748862,18.70739403,216.43,216.36,23.776884]
[1731791750629,18.70739403,216.43,216.37,14.08689403]
[1731791750837,18.70689403,216.45,216.39,0.21916462]
[1731791751033,4.62,216.45,216.39,0.21916462]
[1731791751241,14.08689403,216.46,216.39,0.21916462]
[1731791752240,14.08689403,216.44,216.39,0.21916462]
[1731791752648,4.6189,216.5,216.39,0.21916462]
[1731791752649,14.08689403,216.45,216.39,0.21916462]
[1731791753438,14.08689403,216.46,216.39,0.21916462]
[1731791753893,14.08689403,216.45,216.39,0.21916462]
[1731791756849,18.70659403,216.46,216.39,14.30605865]
[1731791757350,4.6197,216.46,216.4,14.08689403]
[1731791757751,14.08689403,216.47,216.4,14.08689403]
[1731791757965,18.70649403,216.47,216.4,14.08689403]
[1731791759555,14.08689403,216.46,216.39,14.30605865]
[1731791760569,0.5408931,216.51,216.5,0.34465462]
[1731791760742,0.5408931,216.51,216.5,53.1213017]
[1731791761348,0.5408931,216.51,216.5,29.2189277]
[1731791761675,0.5408931,216.51,216.5,53.1213017]
[1731791761976,8.99976308,216.6,216.5,53.1213017]
[1731791761977,8.99976308,216.6,216.53,8.99976308]
[1731791762198,4.7068247,216.63,216.54,0.09367462]
[1731791762374,8.99976308,216.61,216.54,0.21916462]
[1731791762900,4.7068247,216.63,216.51,23.776884]
[1731791762901,14.06234359,216.6,216.52,34.18783359]
[1731791763894,14.06234359,216.58,216.5,14.06234359]
[1731791764186,14.06234359,216.59,216.51,34.06234359]
[1731791765273,14.06234359,216.57,216.5,14.06234359]
[1731791765478,14.06234359,216.56,216.48,57.96471759]
[1731791765875,14.06234359,216.57,216.49,14.15601821]
[1731791766071,14.06234359,216.57,216.5,20.0]
[1731791766395,14.06234359,216.57,216.5,14.06234359]
[1731791766584,14.06234359,216.58,216.51,14.06234359]
[1731791766893,18.67934359,216.59,216.51,14.06234359]
[1731791767095,4.617,216.59,216.53,14.06234359]
[1731791768497,14.06234359,216.6,216.53,14.06234359]
[1731791768793,18.67904359,216.61,216.53,14.06234359]
[1731791772754,14.06234359,216.6,216.53,14.06234359]
[1731791773170,14.06234359,216.6,216.52,14.06234359]
[1731791774073,14.06234359,216.6,216.53,14.06234359]
[1731791774575,18.67914359,216.6,216.53,14.06234359]
[1731791779081,18.67914359,216.6,216.53,13.97171889]
[1731791779582,14.06234359,216.58,216.51,14.06234359]
[1731791780484,14.06234359,216.59,216.52,14.06234359]
[1731791781490,18.67914359,216.6,216.53,14.06234359]
[1731791782563,14.06234359,216.59,216.52,14.06234359]
[1731791782780,14.06234359,216.59,216.52,9.00046867]
[1731791782781,9.00046867,216.59,216.52,9.00046867]
[1731791786081,9.00046867,216.53,216.47,22.057]
[1731791786265,9.00046867,216.51,216.47,16.0079]
[1731791786467,9.00046867,216.49,216.42,31.70316867]
[1731791786663,9.00046867,216.47,216.42,22.7027]
[1731791786990,9.00046867,216.47,216.42,16.3743]
[1731791787289,9.00046867,216.45,216.42,16.3743]
[1731791787472,9.00046867,216.45,216.37,15.32886867]
[1731791787873,9.00046867,216.44,216.37,15.32886867]
[1731791788659,9.00046867,216.45,216.37,15.32886867]
[1731791788900,14.08222581,216.45,216.37,20.41062581]
[1731791789190,14.08222581,216.44,216.37,20.41062581]
[1731791789497,14.08222581,216.44,216.38,20.0]
[1731791790588,18.70202581,216.46,216.38,20.0]
[1731791790785,3.185,216.51,216.42,14.08222581]
[1731791791089,3.185,216.51,216.43,14.08222581]
[1731791791090,14.08222581,216.51,216.43,14.08222581]
[1731791791420,18.70092581,216.51,216.43,14.08222581]
[1731791791981,18.70092581,216.51,216.37,20.41062581]
[1731791791982,14.08222581,216.44,216.32,6.3284]
[1731791792161,14.08222581,216.42,216.34,14.08222581]
[1731791793469,14.08222581,216.42,216.35,20.0]
[1731791794166,14.08222581,216.44,216.36,14.08222581]
[1731791795994,14.08222581,216.48,216.4,14.08222581]
[1731791796290,14.08222581,216.48,216.4,30.45652581]
[1731791796485,14.08222581,216.46,216.4,16.3743]
[1731791800597,14.08222581,216.48,216.41,20.09367462]
[1731791800807,14.08222581,216.48,216.41,26.42207462]
[1731791801179,14.08222581,216.5,216.43,20.09367462]
[1731791803610,14.08222581,216.5,216.43,20.0]
[1731791803907,14.08222581,216.48,216.41,6.3284]
[1731791804079,14.08222581,216.46,216.41,6.3284]
[1731791804288,4.6178,216.55,216.41,6.3284]
[1731791804289,14.08222581,216.48,216.41,6.3284]
[1731791805082,14.08222581,216.48,216.42,14.08222581]
[1731791806694,14.08222581,216.48,216.41,6.3284]
[1731791810909,9.0093128,216.49,216.41,15.3377128]
[1731791812088,13.6285128,216.49,216.41,15.3377128]
[1731791812288,24.618,216.54,216.42,0.21916462]
[1731791812486,9.0093128,216.48,216.41,6.3284]
[1731791813406,9.0093128,216.47,216.41,6.3284]